bitfinex-derivatives/quotes_SOLF0:USTF0_20241101
["timestamp","ask_amount","ask_price","bid_price","bid_amount"]
[1730483540478,11.51596414,166.91,166.83,2.7754]
[1730483540678,11.51596414,166.91,166.84,3.82]
[1730483541285,2.9971,166.87,166.84,6.8175]
[1730483542887,2.9974,166.85,166.84,3.82]
[1730483543083,11.51596414,166.91,166.84,3.82]
[1730483543688,11.51596414,166.89,166.8,11.51596414]
[1730483543890,11.51596414,166.89,166.78,11.51596414]
[1730483544091,2.9976,166.85,166.82,2.9979]
[1730483544390,11.51596414,166.87,166.8,3.82]
[1730483544583,2.9978,166.83,166.79,2.9983]
[1730483544779,2.9978,166.83,166.78,3.82]
[1730483545175,2.998,166.82,166.8,2.9982]
[1730483545375,2.998,166.82,166.78,3.82]
[1730483546381,2.998,166.82,166.79,2.9983]
[1730483546688,11.51596414,166.87,166.78,3.82]
[1730483547086,2.9979,166.83,166.8,2.9982]
[1730483547781,11.51596414,166.87,166.78,3.82]
[1730483547978,2.9984,166.8,166.78,3.82]
[1730483549295,2.9978,166.83,166.8,2.9982]
[1730483549486,11.51596414,166.87,166.78,3.82]
[1730483549995,2.9978,166.83,166.78,3.82]
[1730483550380,2.9978,166.83,166.81,2.998]
[1730483550689,2.9978,166.83,166.78,3.82]
[1730483551493,2.998,166.82,166.78,3.82]
[1730483552082,3.82,166.9,166.78,3.82]
[1730483552083,2.9983,166.81,166.78,3.82]
[1730483552385,11.51596414,166.85,166.78,3.82]
[1730483552582,11.51596414,166.8,166.7,3.0]
[1730483552784,2.9995,166.74,166.7,3.0]
[1730483553191,2.9995,166.74,166.71,2.9999]
[1730483553395,11.51596414,166.78,166.71,2.9999]
[1730483553697,2.9993,166.75,166.67,2.549]
[1730483554082,2.9993,166.75,166.68,11.51596414]
[1730483554290,2.9993,166.75,166.69,3.82]
[1730483554483,11.51596414,166.81,166.69,3.82]
[1730483554694,2.9991,166.76,166.73,2.9996]
[1730483555086,2.9991,166.76,166.69,15.33596414]
[1730483555287,2.9993,166.75,166.69,15.33596414]
[1730483555793,11.51596414,166.78,166.69,15.33596414]
[1730483555992,11.51596414,166.78,166.69,3.82]
[1730483556293,11.51596414,166.78,166.67,2.549]
[1730483556294,11.51596414,166.74,166.67,2.549]
[1730483556992,2.9999,166.71,166.68,3.0003]
[1730483557190,11.51596414,166.74,166.67,2.549]
[1730483557396,11.51596414,166.74,166.67,1.2915]
[1730483557886,3.0007,166.67,166.64,57.33372502]
[1730483558093,11.51596414,166.7,166.62,3.82]
[1730483558487,11.51596414,166.7,166.63,3.0013]
[1730483558488,3.0005,166.68,166.63,3.0013]
[1730483558687,11.51596414,166.7,166.63,3.0013]
[1730483559091,3.0008,166.67,166.63,3.0013]
[1730483559291,11.51596414,166.7,166.62,3.82]
[1730483560293,3.0006,166.68,166.64,3.0011]
[1730483561792,3.0006,166.68,166.65,3.0009]
[1730483561987,11.51596414,166.72,166.62,15.33596414]
[1730483562191,11.51596414,166.74,166.62,15.33596414]
[1730483562392,11.51596414,166.74,166.67,3.0005]
[1730483562798,3.0,166.71,166.67,3.0005]
[1730483563703,14.51596414,166.71,166.67,3.0005]
[1730483564598,11.51596414,166.71,166.62,15.33596414]
[1730483564803,3.82,166.75,166.61,1.344]
[1730483564804,11.51596414,166.69,166.61,5.164]
[1730483566004,11.51596414,166.69,166.63,3.0013]
[1730483566499,3.0008,166.67,166.63,3.0013]
[1730483567203,3.0008,166.66,166.63,3.0013]
[1730483567710,3.001,166.65,166.62,3.0015]
[1730483568006,11.51596414,166.69,166.61,5.164]
[1730483569300,3.0009,166.66,166.63,3.0013]
[1730483570303,3.0007,166.67,166.63,3.0013]
[1730483570505,3.0007,166.67,166.61,1.344]
[1730483571307,3.0007,166.67,166.64,3.0011]
[1730483571706,11.51596414,166.69,166.61,1.344]
[1730483571910,3.0009,166.66,166.63,3.0013]
[1730483574411,11.51596414,166.82,166.65,11.51596414]
[1730483574618,1.2777,166.87,166.77,11.51596414]
[1730483574824,1.2777,166.87,166.79,11.51596414]
[1730483575515,2.9976,166.84,166.79,11.51596414]
[1730483575715,1.2777,166.87,166.79,11.51596414]
[1730483575923,2.9977,166.84,166.79,11.51596414]
[1730483576211,1.2777,166.87,166.79,11.51596414]
[1730483576603,2.9974,166.86,166.79,14.51426414]
[1730483576915,1.2777,166.87,166.77,15.33596414]
[1730483577223,12.79366414,166.87,166.77,3.82]
[1730483577802,2.9979,166.83,166.77,3.82]
[1730483578008,12.79366414,166.87,166.77,3.82]
[1730483578209,12.79366414,166.87,166.77,15.33596414]
[1730483578512,2.9974,166.85,166.78,2.9985]
[1730483578916,2.9976,166.84,166.78,2.9985]
[1730483579107,12.79366414,166.87,166.8,2.9983]
[1730483579307,2.9973,166.86,166.77,15.33596414]
[1730483579715,1.2777,166.87,166.8,2.9983]
[1730483581518,2.9974,166.85,166.8,2.9983]
[1730483581902,2.9976,166.84,166.8,2.9983]
[1730483582309,1.2777,166.87,166.78,2.9985]
[1730483582617,2.9978,166.83,166.78,2.9985]
[1730483583017,2.9978,166.83,166.79,2.9984]
[1730483583519,11.51596414,166.87,166.78,2.9986]
[1730483583707,11.51596414,166.87,166.77,15.33596414]
[1730483584109,2.9981,166.82,166.78,2.9987]
[1730483584308,11.51596414,166.87,166.78,2.9987]
[1730483585418,2.9981,166.82,166.78,2.9987]
[1730483585620,11.51596414,166.87,166.78,2.9987]
[1730483585810,2.9981,166.82,166.78,2.9987]
[1730483587612,11.51596414,166.84,166.76,3.82]
[1730483587917,12.80656414,166.87,166.76,3.82]
[1730483588514,2.9981,166.82,166.79,2.9984]
[1730483588713,2.9981,166.82,166.76,3.82]
[1730483589120,2.9985,166.79,166.76,6.8189]
[1730483590215,2.9984,166.8,166.77,2.9988]
[1730483590720,2.9985,166.79,166.76,6.8189]
[1730483592424,2.9985,166.79,166.77,2.9988]
[1730483592816,2.9985,166.79,166.76,3.82]
[1730483593017,11.51596414,166.83,166.76,3.82]
[1730483593322,2.9988,166.78,166.76,3.82]
[1730483595125,2.999,166.77,166.74,2.9994]
[1730483596328,2.9993,166.75,166.73,3.8]
[1730483596624,11.51596414,166.77,166.68,3.9708]
[1730483596827,11.51596414,166.77,166.7,3.8]
[1730483597221,11.51596414,166.77,166.71,2.9999]
[1730483597725,2.9995,166.74,166.71,2.9999]
[1730483598531,11.51596414,166.77,166.7,3.8]
[1730483598726,2.9998,166.72,166.7,3.8]
[1730483601122,11.51596414,166.77,166.7,3.8]
[1730483601332,11.51596414,166.77,166.66,43.2]
[1730483601333,11.51596414,166.74,166.66,3.0007]
[1730483601634,3.8,166.77,166.66,3.0007]
[1730483601635,11.51596414,166.72,166.66,3.0007]
[1730483601829,3.0004,166.69,166.66,3.0007]
[1730483602335,11.51596414,166.72,166.63,12.80436414]
[1730483602534,11.51596414,166.72,166.63,16.60436414]
[1730483603128,3.0004,166.69,166.65,3.0008]
[1730483603332,3.0004,166.69,166.63,16.60436414]
[1730483603634,11.51596414,166.75,166.65,11.51596414]
[1730483603928,2.9997,166.72,166.68,3.0005]
[1730483604134,2.9997,166.72,166.67,11.51596414]
[1730483604337,11.51596414,166.77,166.67,11.51596414]
[1730483604522,3.8,166.78,166.67,11.51596414]
[1730483604921,3.8,166.78,166.68,3.8]
[1730483605125,3.8,166.78,166.7,3.0]
[1730483605126,2.9996,166.73,166.7,3.0]
[1730483606030,11.51596414,166.79,166.68,3.8]
[1730483606232,3.8,166.86,166.74,2.9994]
[1730483606427,0.97415183,166.83,166.74,2.9994]
[1730483606631,2.9988,166.77,166.74,2.9994]
[1730483607321,0.97415183,166.83,166.73,6.7995]
[1730483607322,2.9991,166.76,166.73,6.7995]
[1730483609227,0.97415183,166.83,166.73,3.8]
[1730483610533,2.9988,166.78,166.75,2.9991]
[1730483612440,2.9989,166.77,166.74,2.9994]
[1730483614139,11.51596414,166.81,166.74,2.9994]
[1730483614527,45.60713567,166.84,166.72,2.9997]
[1730483614528,2.9993,166.75,166.72,2.9997]
[1730483614840,11.51596414,166.79,166.7,12.85456414]
[1730483614841,11.51596414,166.79,166.7,1.3386]
[1730483615636,11.51596414,166.79,166.7,12.85456414]
[1730483615935,2.9993,166.75,166.72,2.9997]
[1730483616441,2.9994,166.74,166.72,2.9997]
[1730483617530,2.9994,166.74,166.7,12.85456414]
[1730483617531,2.9989,166.77,166.73,2.9994]
[1730483617832,11.51596414,166.79,166.73,2.9994]
[1730483618236,2.9992,166.76,166.73,2.9994]
[1730483619043,2.9992,166.75,166.73,2.9994]
[1730483621551,2.9992,166.75,166.72,2.9997]
[1730483622538,2.9994,166.74,166.72,2.9997]
[1730483622943,2.9994,166.74,166.71,2.9998]
[1730483625346,7.37691499,166.72,166.65,7.37691499]
[1730483625544,7.37691499,166.71,166.66,3.8]
[1730483626241,7.37691499,166.71,166.64,7.37691499]
[1730483626448,7.37691499,166.69,166.64,11.17691499]
[1730483626648,3.0006,166.68,166.65,3.001]
[1730483626945,7.37691499,166.69,166.65,3.001]
[1730483627340,3.0005,166.68,166.66,3.0008]
[1730483627655,7.37691499,166.69,166.64,11.17691499]
[1730483628048,3.0008,166.67,166.64,14.17801499]
[1730483628842,3.0009,166.66,166.63,14.43211499]
[1730483629059,7.37691499,166.68,166.63,14.43211499]
[1730483629349,3.0009,166.66,166.63,14.43211499]
[1730483629559,7.37691499,166.68,166.63,14.43211499]
[1730483629937,3.0007,166.67,166.63,11.43091499]
[1730483630140,7.37691499,166.68,166.63,11.43091499]
[1730483631046,3.0009,166.66,166.63,14.43221499]
[1730483632049,3.0,166.71,166.65,7.37691499]
[1730483632352,3.0,166.71,166.67,7.37691499]
[1730483632651,7.37691499,166.72,166.67,7.37691499]
[1730483632839,7.37691499,166.72,166.66,7.37691499]
[1730483633045,3.0001,166.7,166.68,3.0004]
[1730483633247,7.37691499,166.71,166.64,7.37691499]
[1730483633651,3.0004,166.69,166.66,3.0007]
[1730483634651,3.0003,166.7,166.67,3.0005]
[1730483636745,3.0003,166.69,166.64,7.37691499]
[1730483636951,3.0003,166.69,166.66,3.0008]
[1730483637355,3.0007,166.67,166.65,3.001]
[1730483638345,10.37741499,166.68,166.65,3.001]
[1730483638550,3.0005,166.68,166.65,3.001]
[1730483641841,3.0005,166.68,166.66,3.0007]
[1730483642355,10.37731499,166.69,166.64,7.37691499]
[1730483642554,10.37731499,166.69,166.66,3.0007]
[1730483643161,3.0004,166.69,166.65,7.37691499]
[1730483643558,7.37691499,166.67,166.61,7.37691499]
[1730483643763,7.37691499,166.67,166.61,11.17691499]
[1730483643956,7.37691499,166.67,166.62,7.37691499]
[1730483644156,3.0005,166.68,166.62,7.37691499]
[1730483644558,7.37691499,166.69,166.62,7.37691499]
[1730483644761,3.0008,166.67,166.64,3.0011]
[1730483646055,7.37691499,166.7,166.64,7.37691499]
[1730483646762,3.0006,166.68,166.64,7.37691499]
[1730483647163,7.37691499,166.69,166.64,7.37691499]
[1730483647555,3.0007,166.67,166.62,7.37691499]
[1730483648168,3.0007,166.67,166.63,3.0013]
[1730483648366,3.0007,166.67,166.62,7.37691499]
[1730483648564,45.62619306,166.76,166.62,7.37691499]
[1730483648867,3.0009,166.66,166.61,11.17691499]
[1730483649365,3.0009,166.66,166.64,3.0012]
[1730483652062,7.37691499,166.68,166.63,7.37691499]
[1730483652267,10.37741499,166.68,166.65,3.0009]
[1730483653169,3.0006,166.67,166.65,3.0009]
[1730483653666,10.37751499,166.67,166.65,3.0009]
[1730483653865,3.0008,166.66,166.62,3.0014]
[1730483654065,3.0008,166.66,166.61,11.17691499]
[1730483654066,3.0008,166.66,166.63,7.37691499]
[1730483654967,3.0007,166.67,166.65,3.001]
[1730483658568,7.37691499,166.67,166.61,11.17691499]
[1730483658779,3.0011,166.65,166.63,3.0013]
[1730483659378,7.37691499,166.7,166.64,7.37691499]
[1730483659874,3.0006,166.68,166.64,7.37691499]
[1730483660375,3.0007,166.67,166.65,3.0009]
[1730483660576,7.37691499,166.7,166.64,7.37691499]
[1730483661177,7.37691499,166.7,166.61,3.8]
[1730483661178,7.37691499,166.7,166.68,3.0003]
[1730483661476,7.37691499,166.7,166.65,7.37691499]
[1730483661669,7.37691499,166.72,166.69,3.0003]
[1730483662267,3.0,166.71,166.68,3.0004]
[1730483663777,7.37691499,166.72,166.68,3.0004]
[1730483664076,3.0001,166.7,166.68,3.0004]
[1730483664579,3.0003,166.69,166.67,3.0006]
[1730483664974,7.37691499,166.7,166.65,7.37691499]
[1730483665174,7.37691499,166.72,166.69,3.0002]
[1730483665371,7.37691499,166.74,166.68,7.37691499]
[1730483666480,2.9997,166.72,166.7,3.0]
[1730483667077,2.9996,166.73,166.7,2.9999]
[1730483667480,7.37691499,166.75,166.68,7.37691499]
[1730483667679,2.9995,166.74,166.7,7.37691499]
[1730483667980,7.37691499,166.75,166.7,7.37691499]
[1730483668577,7.37691499,166.76,166.71,7.37691499]
[1730483669080,2.9993,166.75,166.72,2.9997]
[1730483669980,2.9998,166.72,166.68,7.37691499]
[1730483670378,2.9998,166.72,166.67,11.31021499]
[1730483670685,2.9998,166.72,166.7,3.0001]
[1730483671276,2.9998,166.72,166.67,11.31021499]
[1730483671277,7.37691499,166.73,166.67,11.31021499]
[1730483671483,7.37691499,166.72,166.67,3.9333]
[1730483671884,3.0002,166.7,166.68,3.0004]
[1730483676294,3.0003,166.69,166.67,3.0006]
[1730483676495,7.37691499,166.72,166.66,11.17691499]
[1730483677001,3.0005,166.68,166.66,14.17771499]
[1730483677690,5.998,166.77,166.63,7.37691499]
[1730483677691,3.0006,166.67,166.63,7.37691499]
[1730483677894,7.37691499,166.69,166.61,4.0123]
[1730483678094,1.2912,166.76,166.61,4.0123]
[1730483678095,7.37691499,166.67,166.61,11.38921499]
[1730483678295,3.0012,166.64,166.61,9.4247]
[1730483678491,7.37691499,166.65,166.61,9.4247]
[1730483678893,3.0015,166.62,166.61,6.4231]
[1730483679104,3.0015,166.62,166.61,3.8]
[1730483680700,7.37691499,166.64,166.59,3.002]
[1730483680701,3.0018,166.61,166.59,3.002]
[1730483680895,7.37691499,166.64,166.59,3.002]
[1730483681397,3.0015,166.62,166.59,3.002]
[1730483682602,7.37691499,166.67,166.61,7.37691499]
[1730483682909,7.37691499,166.67,166.63,7.37691499]
[1730483683500,10.37771499,166.67,166.64,3.0011]
[1730483684906,7.37691499,166.66,166.6,7.37691499]
[1730483685107,3.0012,166.64,166.62,3.0014]
[1730483685695,7.37691499,166.64,166.58,7.37691499]
[1730483686002,7.37691499,166.64,166.58,11.17691499]
[1730483686411,3.0017,166.62,166.59,3.0021]
[1730483686608,7.37691499,166.62,166.57,8.65271499]
[1730483686908,7.37691499,166.62,166.58,3.8]
[1730483687205,3.0016,166.62,166.59,3.002]
[1730483689611,10.37851499,166.62,166.59,3.002]
[1730483691310,7.37691499,166.64,166.62,3.0014]
[1730483691514,10.37801499,166.65,166.62,3.0014]
[1730483692706,3.0009,166.66,166.64,3.0012]
[1730483693108,7.37691499,166.68,166.62,7.37691499]
[1730483693314,3.0008,166.67,166.64,3.0011]
[1730483693611,7.37691499,166.68,166.64,3.0011]
[1730483694917,7.37691499,166.68,166.62,7.37691499]
[1730483695109,7.37691499,166.68,166.66,3.0008]
[1730483696405,10.37741499,166.68,166.63,11.17691499]
[1730483696715,7.37691499,166.66,166.63,3.8]
[1730483697516,3.0012,166.65,166.63,3.8]
[1730483698015,10.37811499,166.65,166.63,3.8]
[1730483702121,3.0012,166.65,166.63,6.8013]
[1730483704022,3.0012,166.65,166.63,3.8]
[1730483706428,7.37691499,166.66,166.63,3.8]
[1730483706626,7.37691499,166.66,166.64,3.0012]
[1730483706627,3.0009,166.66,166.64,3.0012]
[1730483706823,7.37691499,166.69,166.64,7.37691499]
[1730483707029,10.37731499,166.69,166.66,3.0008]
[1730483707215,7.37691499,166.69,166.66,3.0008]
[1730483707723,3.0006,166.68,166.66,3.0008]
[1730483708026,7.37691499,166.68,166.65,3.0009]
[1730483709234,3.0006,166.67,166.65,3.0009]
[1730483712234,7.37691499,166.66,166.63,3.0013]
[1730483712931,3.001,166.65,166.63,3.0013]
[1730483714730,7.37691499,166.65,166.6,7.37691499]
[1730483715031,5.0922,166.74,166.59,11.15691499]
[1730483715032,7.37691499,166.64,166.59,11.15691499]
[1730483715226,7.37691499,166.67,166.62,7.37691499]
[1730483715430,3.0009,166.66,166.63,3.0013]
[1730483715627,7.37691499,166.67,166.63,3.0013]
[1730483716337,3.0011,166.65,166.62,10.37841499]
[1730483718037,7.37691499,166.67,166.62,7.37691499]
[1730483718341,3.0013,166.64,166.62,3.0015]
[1730483718924,7.37691499,166.63,166.59,3.78]
[1730483719232,7.37691499,166.65,166.6,7.37691499]
[1730483719429,3.0015,166.63,166.61,3.0017]
[1730483720434,3.0015,166.63,166.6,7.37691499]
[1730483720633,7.37691499,166.65,166.6,10.37871499]
[1730483720634,3.0016,166.62,166.6,10.37871499]
[1730483723534,7.37691499,166.66,166.61,7.37691499]
[1730483723737,7.37691499,166.66,166.62,3.0015]
[1730483723738,3.0013,166.64,166.62,3.0015]
[1730483723942,7.37691499,166.67,166.62,7.37691499]
[1730483724530,7.37691499,166.67,166.59,3.78]
[1730483724531,3.0006,166.68,166.66,3.0008]
[1730483724736,3.0006,166.68,166.64,7.37691499]
[1730483725137,3.0006,166.68,166.65,3.0008]
[1730483725443,7.37691499,166.69,166.65,3.0008]
[1730483725647,3.0007,166.67,166.65,3.0008]
[1730483726344,3.0009,166.66,166.63,10.37811499]
[1730483726542,3.0009,166.66,166.63,3.0012]
[1730483727249,5.0722,166.74,166.59,3.78]
[1730483727250,7.37691499,166.64,166.59,3.78]
[1730483727448,7.37691499,166.64,166.59,11.15691499]
[1730483727638,7.37691499,166.66,166.59,11.15691499]
[1730483728248,3.0014,166.63,166.61,3.0017]
[1730483728548,3.0014,166.63,166.59,11.15691499]
[1730483729446,3.0014,166.63,166.61,3.0017]
[1730483730546,3.0015,166.63,166.59,14.15891499]
[1730483730741,7.37691499,166.63,166.59,3.78]
[1730483730938,7.37691499,166.63,166.57,8.65271499]
[1730483731133,3.002,166.6,166.57,15.43501499]
[1730483731542,7.37691499,166.62,166.56,9.97381499]
[1730483731743,7.37691499,166.61,166.51,1.339]
[1730483731934,7.37691499,166.61,166.55,65.5159556]
[1730483732333,3.0022,166.59,166.56,10.37951499]
[1730483733134,7.37691499,166.61,166.56,10.37951499]
[1730483733346,3.0024,166.58,166.55,64.7386556]
[1730483733835,3.002,166.6,166.55,61.7359556]
[1730483734038,7.37691499,166.58,166.52,7.37691499]
[1730483734244,7.37691499,166.58,166.53,3.78]
[1730483734443,7.37691499,166.58,166.52,7.37691499]
[1730483734639,7.37691499,166.59,166.54,7.37691499]
[1730483734941,3.0026,166.57,166.54,10.37981499]
[1730483736154,3.0027,166.56,166.54,7.37691499]
[1730483736356,7.37691499,166.58,166.53,7.37691499]
[1730483738158,3.0029,166.55,166.53,7.37691499]
[1730483738445,7.37691499,166.57,166.51,8.71591499]
[1730483739647,3.0029,166.55,166.52,3.0032]
[1730483739846,7.37691499,166.53,166.47,7.37691499]
[1730483740045,7.37691499,166.51,166.46,3.78]
[1730483740247,7.37691499,166.48,166.43,7.37691499]
[1730483740550,7.37691499,166.48,166.42,11.15691499]
[1730483740756,7.37691499,166.48,166.43,7.37691499]
[1730483740757,3.0044,166.47,166.43,7.37691499]
[1730483741234,3.0047,166.45,166.42,6.785]
[1730483741846,7.37691499,166.45,166.4,10.38231499]
[1730483742152,7.37691499,166.46,166.41,7.37691499]
[1730483742351,3.0046,166.45,166.42,3.005]
[1730483743752,10.38141499,166.46,166.42,3.005]
[1730483744053,7.37691499,166.49,166.42,7.37691499]
[1730483744458,3.0042,166.48,166.45,3.0045]
[1730483745350,3.0043,166.47,166.44,3.0048]
[1730483745552,11.53672924,166.5,166.4,3.78]
[1730483746053,11.53672924,166.5,166.43,3.0048]
[1730483747058,3.0044,166.47,166.43,3.0048]
[1730483747353,11.53672924,166.48,166.41,3.0053]
[1730483747948,11.53672924,166.48,166.4,3.78]
[1730483748147,3.0047,166.45,166.42,3.0051]
[1730483748753,11.53672924,166.48,166.4,3.78]
[1730483748961,3.0045,166.46,166.4,3.78]
[1730483750254,11.53672924,166.5,166.44,3.0048]
[1730483750255,3.0042,166.48,166.44,3.0048]
[1730483750446,11.53672924,166.5,166.44,3.0048]
[1730483751256,3.0044,166.46,166.44,3.0048]
[1730483751857,3.0045,166.46,166.43,3.0049]
[1730483753060,11.53672924,166.48,166.43,3.0049]
[1730483753757,3.0045,166.46,166.43,3.0049]
[1730483754261,3.0045,166.46,166.4,3.78]
[1730483754262,11.53672924,166.48,166.42,3.0051]
[1730483754653,11.53672924,166.48,166.4,3.78]
[1730483754654,3.0046,166.45,166.4,3.78]
[1730483754853,3.0046,166.45,166.43,3.0049]
[1730483756360,3.0044,166.47,166.44,3.0046]
[1730483756558,2.604,166.56,166.42,11.53672924]
[1730483756559,11.53672924,166.53,166.42,11.53672924]
[1730483757561,3.0038,166.5,166.47,3.0042]
[1730483758261,3.004,166.49,166.46,3.0044]
[1730483759870,11.53672924,166.51,166.45,3.78]
[1730483760068,3.0043,166.47,166.45,3.78]
[1730483760464,11.53672924,166.51,166.45,3.78]
[1730483760670,11.53672924,166.51,166.44,3.78]
[1730483761571,3.0044,166.47,166.44,6.7847]
[1730483762774,11.53672924,166.51,166.44,3.78]
[1730483763068,3.0041,166.49,166.46,3.0043]
[1730483763461,3.0043,166.47,166.45,3.0046]
[1730483763663,3.0043,166.47,166.44,3.78]
[1730483764164,3.0043,166.47,166.44,6.7848]
[1730483764358,3.0041,166.48,166.44,6.7848]
[1730483764961,3.0038,166.5,166.46,3.0044]
[1730483765368,3.78,166.54,166.44,3.78]
[1730483765369,11.53672924,166.53,166.44,3.78]
[1730483765568,14.53962924,166.55,166.52,3.0033]
[1730483765867,11.53672924,166.55,166.47,1.3309]
[1730483766256,57.21792306,166.57,166.47,3.0042]
[1730483766257,3.0037,166.5,166.47,3.0042]
[1730483766467,11.53672924,166.5,166.39,12.86762924]
[1730483766770,7.38631382,166.48,166.43,7.38631382]
[1730483767063,7.38631382,166.5,166.45,7.38631382]
[1730483767259,10.39011382,166.5,166.46,3.0043]
[1730483768264,7.38631382,166.5,166.45,7.38631382]
[1730483768462,7.38631382,166.53,166.46,12.50551382]
[1730483768863,3.0034,166.52,166.49,3.0038]
[1730483770469,57.224326,166.57,166.46,16.66233218]
[1730483770674,57.224326,166.57,166.47,1.3487]
[1730483771174,3.003,166.54,166.51,3.0035]
[1730483771770,3.0032,166.53,166.51,3.0035]
[1730483772079,11.54313218,166.55,166.5,3.0037]
[1730483772267,3.0034,166.52,166.5,3.0037]
[1730483772467,3.0034,166.52,166.47,1.3487]
[1730483772663,3.0034,166.52,166.49,3.0038]
[1730483773663,3.0034,166.52,166.5,3.0037]
[1730483774477,3.0033,166.53,166.5,3.0037]
[1730483774876,11.54313218,166.55,166.5,3.0037]
[1730483777479,11.54313218,166.57,166.47,1.3487]
[1730483777975,3.0029,166.55,166.52,3.0032]
[1730483778276,11.54313218,166.57,166.47,1.3487]
[1730483778680,3.0031,166.54,166.51,3.0034]
[1730483779273,11.54313218,166.57,166.47,1.3487]
[1730483779471,3.0033,166.53,166.5,3.0036]
[1730483779780,6.77646302,166.59,166.47,1.3487]
[1730483779781,11.54313218,166.55,166.47,1.3487]
[1730483779966,3.0035,166.51,166.49,3.0038]
[1730483780479,3.0034,166.52,166.49,3.0038]
[1730483781680,3.0034,166.52,166.47,1.3487]
[1730483781681,11.54313218,166.55,166.48,3.004]
[1730483782371,3.0036,166.51,166.48,3.004]
[1730483782676,11.54313218,166.55,166.47,3.0042]
[1730483783279,3.0039,166.49,166.47,3.0042]
[1730483783887,3.0037,166.5,166.46,5.1192]
[1730483784390,3.0037,166.5,166.47,3.0041]
[1730483784778,3.0037,166.5,166.46,5.1192]
[1730483785079,3.0037,166.5,166.47,3.0042]
[1730483786584,3.0038,166.5,166.47,3.0042]
[1730483789283,3.0038,166.5,166.46,1.3392]
[1730483789487,3.0038,166.5,166.48,3.0041]
[1730483796195,6.77646302,166.59,166.41,8.75617189]
[1730483796196,7.38157189,166.49,166.41,8.75617189]
[1730483796494,7.38157189,166.47,166.41,12.51617189]
[1730483796697,10.38587189,166.47,166.44,3.0046]
[1730483797097,6.89286481,166.53,166.45,3.0045]
[1730483797098,10.38567189,166.48,166.45,3.0045]
[1730483797297,7.38157189,166.5,166.45,7.38157189]
[1730483797501,7.38157189,166.52,166.45,7.38157189]
[1730483797793,7.38157189,166.54,166.47,7.38157189]
[1730483798395,3.0033,166.53,166.5,3.0036]
[1730483798586,7.38157189,166.54,166.5,3.0036]
[1730483800294,3.0034,166.52,166.5,3.0036]
[1730483800496,10.38497189,166.52,166.49,3.0038]
[1730483806700,7.38157189,166.54,166.5,3.0036]
[1730483806905,7.38157189,166.56,166.5,7.38157189]
[1730483807413,3.0033,166.53,166.48,7.38157189]
[1730483807712,7.38157189,166.54,166.48,7.38157189]
[1730483809414,3.0034,166.52,166.5,3.0036]
[1730483809604,7.38157189,166.54,166.48,7.38157189]
[1730483809914,7.38157189,166.53,166.48,3.004]
[1730483810410,7.38157189,166.53,166.47,10.06507189]
[1730483810411,3.0036,166.51,166.49,3.0039]
[1730483815613,3.0029,166.55,166.49,7.38157189]
[1730483815813,3.0029,166.55,166.52,7.38157189]
[1730483816210,3.0029,166.55,166.52,10.38487189]
[1730483816816,7.38157189,166.57,166.52,10.38487189]
[1730483817006,3.003,166.54,166.52,10.38487189]
[1730483817205,7.38157189,166.57,166.52,10.38487189]
[1730483817414,3.0029,166.55,166.53,3.0031]
[1730483817814,7.38157189,166.57,166.52,7.38157189]
[1730483820415,3.0027,166.56,166.53,3.003]
[1730483820920,3.0031,166.54,166.51,6.7634]
[1730483821919,3.0031,166.54,166.51,3.76]
[1730483822121,3.0031,166.54,166.52,3.0033]
[1730483822511,3.0033,166.52,166.51,3.76]
[1730483822714,7.38157189,166.54,166.51,3.76]
[1730483823120,3.0033,166.53,166.51,3.76]
[1730483824412,7.38157189,166.54,166.51,3.76]
[1730483824613,3.0033,166.52,166.51,3.76]
[1730483824819,3.0033,166.52,166.5,3.0036]
[1730483825010,3.0033,166.52,166.48,11.14157189]
[1730483825011,7.38157189,166.52,166.47,10.06507189]
[1730483825216,3.0038,166.5,166.47,13.82507189]